fUST/lending_fUST_20250424
["ID","MTS","AMOUNT","RATE_DAILY","PERIOD"]
[358793596,1745434239946,-160.0,0.00023,3]
[358793597,1745434239955,-160.0,0.00023,3]
[358793598,1745434239964,-420.82143104,0.00023,3]
[358793599,1745434239974,-151.0,0.00023072,7]
[358793600,1745434239983,-151.0,0.00023072,7]
[358793601,1745434239992,-151.0,0.00023072,7]
[358793602,1745434240002,-151.0,0.00023072,7]
[358793603,1745434240011,-151.0,0.00023072,7]
[358793604,1745434240021,-151.0,0.00023072,7]
[358793605,1745434240031,-1952.4056822,0.00023176,4]
[358793606,1745434240041,-151.0,0.00023179,2]
[358793607,1745434240051,-161.6533751,0.00023287,2]
[358793608,1745434240060,-689.4,0.00023324,3]
[358793609,1745434240070,-483.78,0.00023324,3]
[358793610,1745434240080,-241.89,0.00023324,3]
[358793611,1745434240090,-725.68,0.00023324,3]
[358793612,1745434240099,-15971.228504,0.00023334,2]
[358793613,1745434240109,-227.489848,0.00023334,2]
[358793614,1745434240119,-229.8,0.00023693,3]
[358793615,1745434240128,-450.54130739,0.00023703,2]
[358793616,1745434240138,-151.0,0.00023727,2]
[358793617,1745434240148,-1952.4056822,0.00023934,5]
[358793618,1745434240158,-1552.44617361,0.00023943,2]
[358793619,1745434240168,-222.56536409,0.00023956,2]
[358793620,1745434240178,-156.655618,0.000242,7]
[358793621,1745434240187,-160.0,0.000242,7]
[358793622,1745434240197,-12573.79847128,0.000242,7]
[358793623,1745434240207,-160.0,0.000242,7]
[358793624,1745434240216,-839.95942076,0.000242,7]
[358793625,1745434240226,-160.0,0.000242,7]
[358793626,1745434240236,-160.0,0.000242,7]
[358793627,1745434240246,-160.0,0.000242,7]
[358793628,1745434240255,-420.82143104,0.000242,7]
[358793629,1745434240265,-317.73307147,0.00024204,2]
[358793630,1745434240274,-151.0,0.00024207,7]
[358793631,1745434240285,-165.91295,0.00024207,7]
[358793632,1745434240296,-151.0,0.00024207,7]
[358793633,1745434240305,-151.0,0.00024207,7]
[358793634,1745434240316,-151.0,0.00024207,7]
[358793635,1745434240325,-4464.3265793,0.00024226,2]
[358793636,1745434240335,-2537.35943972,0.00024239,2]
[358793637,1745434240345,-160.0,0.00024257,3]
[358793639,1745434240355,-151.0,0.00024275,2]
[358793641,1745434240365,-317.73307146,0.00024293,2]
[358793642,1745434240375,-12500.0,0.00024295,3]
[358793643,1745434240384,-12500.0,0.00024295,3]
[358793644,1745434240393,-151.0,0.000243,7]
[358793645,1745434240403,-151.0,0.000243,7]
[358793646,1745434240412,-151.0,0.000243,10]
[358793647,1745434240422,-151.0,0.000243,7]
[358793648,1745434240431,-151.0,0.000243,9]
[358793649,1745434240440,-151.0,0.000243,9]
[358793650,1745434240450,-12500.0,0.00024304,3]
[358793651,1745434240460,-12573.79847128,0.00024304,3]
[358793652,1745434240470,-160.0,0.00024304,3]
[358793653,1745434240480,-839.95942076,0.00024304,3]
[358793654,1745434240490,-160.0,0.00024304,3]
[358793655,1745434240499,-12500.0,0.00024304,3]
[358793656,1745434240509,-160.0,0.00024304,3]
[358793657,1745434240519,-160.0,0.00024304,3]
[358793659,1745434240528,-420.82143104,0.00024304,3]
[358793660,1745434240537,-12500.0,0.00024313,3]
[358793661,1745434240546,-12500.0,0.00024313,3]
[358793662,1745434240556,-12500.0,0.00024321,3]
[358793663,1745434240565,-12500.0,0.00024321,3]
[358793665,1745434240575,-420.82143104,0.00024321,3]
[358793666,1745434240585,-151.0,0.0002433,7]
[358793667,1745434240594,-151.0,0.0002433,7]
[358793668,1745434240604,-151.0,0.0002433,7]
[358793669,1745434240614,-151.0,0.0002433,7]
[358793670,1745434240624,-12500.0,0.0002433,3]
[358793671,1745434240633,-12500.0,0.0002433,3]
[358793672,1745434240643,-839.95942076,0.0002433,3]
[358793673,1745434240652,-160.0,0.0002433,3]
[358793674,1745434240662,-160.0,0.0002433,3]
[358793675,1745434240672,-160.0,0.0002433,3]
[358793676,1745434240681,-12500.0,0.00024339,3]
[358793677,1745434240692,-12500.0,0.00024339,3]
[358793678,1745434240701,-160.0,0.00024339,3]
[358793679,1745434240711,-12500.0,0.00024348,3]
[358793680,1745434240721,-12500.0,0.00024348,3]
[358793681,1745434240731,-151.0,0.00024348,7]
[358793682,1745434240740,-160.0,0.00024356,3]
[358793683,1745434240750,-12500.0,0.00024357,3]
[358793684,1745434240760,-12500.0,0.00024357,3]
[358793685,1745434240769,-689.285175,0.00024357,7]
[358793686,1745434240779,-689.285169,0.00024357,7]
[358793687,1745434240788,-151.0,0.00024357,7]
[358793688,1745434240798,-151.0,0.00024357,7]
[358793689,1745434240808,-151.0,0.00024357,7]
[358793690,1745434240818,-151.0,0.00024365,7]
[358793691,1745434240829,-151.0,0.00024365,7]
[358793692,1745434240839,-151.0,0.00024365,7]
[358793693,1745434240849,-151.0,0.00024365,7]
[358793694,1745434240865,-151.0,0.00024365,7]
[358793695,1745434240875,-151.0,0.00024365,7]
[358793696,1745434240885,-151.0,0.00024365,7]
[358793697,1745434240894,-151.514005,0.00024365,7]
[358793698,1745434240905,-151.514005,0.00024365,7]
[358793699,1745434240915,-151.0,0.00024365,7]
[358793700,1745434240924,-151.0,0.00024365,7]
[358793701,1745434240935,-151.0,0.00024365,7]
[358793702,1745434240946,-151.0,0.00024365,7]
[358793703,1745434240956,-375.08194,0.00024365,7]
[358793704,1745434240966,-375.08194,0.00024365,7]
[358793705,1745434240975,-151.0,0.00024365,7]
[358793706,1745434240985,-151.0,0.00024365,7]
[358793707,1745434240995,-151.0,0.00024365,7]
[358793709,1745434241005,-151.0,0.00024365,7]
[358793710,1745434241014,-307.408619,0.00024365,7]
[358793711,1745434241024,-307.408619,0.00024365,7]
[358793712,1745434241034,-349.434825,0.00024365,7]
[358793713,1745434241043,-349.434825,0.00024365,7]
[358793714,1745434241052,-12261.93695226,0.00024365,3]
[358793715,1745434241068,-238.06304774,0.00024365,3]
[358793716,1745434241078,-6306.93695226,0.00024365,3]
[358793717,1745434241122,-3409.53252838,0.00024365,3]
[358793718,1745434241134,-2783.53051936,0.00024365,3]
[358793719,1745434241144,-4449.74478274,0.00024365,3]
[358793722,1745434241813,-160.0,0.00021664,2]
[358793723,1745434241823,-151.0,0.00024357,7]
[358793724,1745434241833,-3636.56656187,0.00024365,3]
[358793837,1745435432053,-196.8757192,0.00019529,2]
[358793838,1745435432063,-227.489848,0.00019594,2]
[358793839,1745435432073,-262.0419142,0.00019747,2]
[358793840,1745435432083,-1777.5925186,0.00019829,2]
[358793841,1745435432107,-222.4074814,0.00019829,2]
[358793844,1745435432119,-300.0,0.0002044,2]
[358793846,1745435432130,-300.0,0.0002044,2]
[358793848,1745435432139,-71.1925186,0.00020441,2]
[358793850,1745435432151,-12554.70997892,0.00020441,2]
[358793852,1745435432162,-845.94464486,0.00020541,2]
[358793854,1745435432173,-161.75335627,0.00020695,2]
[358793856,1745435432182,-500.0,0.00020695,2]
[358793859,1745435432191,-500.0,0.00020695,2]
[358793861,1745435432201,-604.29337528,0.00020695,2]
[358793862,1745435432210,-500.0,0.00020695,2]
[358793863,1745435432220,-500.0,0.00020695,2]
[358793865,1745435432229,-509.55347892,0.00020695,2]
[358793866,1745435432241,-500.0,0.00020695,2]
[358793867,1745435432251,-500.0,0.00020695,2]
[358793868,1745435432261,-500.0,0.00020695,2]
[358793869,1745435432271,-448.2889541,0.00020695,2]
[358793870,1745435432282,-1358.39040197,0.00020695,2]
[358793871,1745435432292,-35540.8817507,0.00020696,2]
[358793872,1745435432301,-160.0,0.00020795,2]
[358793873,1745435432311,-160.0,0.00020795,2]
[358793874,1745435432323,-160.0,0.00020795,2]
[358793875,1745435432333,-160.0,0.00020795,2]
[358793876,1745435432342,-160.0,0.00020796,2]
[358793877,1745435432353,-187.01751349,0.000208,2]
[358793878,1745435432444,-2531.88248651,0.000208,2]
[358793879,1745435432455,-151.0,0.00020987,2]
[358793880,1745435432465,-210.64382842,0.00020987,2]
[358793881,1745435432475,-3000.0,0.00021,2]
[358793882,1745435432485,-800.0,0.00021,2]
[358793883,1745435432495,-800.0,0.00021,2]
[358793884,1745435432505,-800.0,0.00021,2]
[358793885,1745435432515,-800.0,0.00021,2]
[358793886,1745435432524,-800.0,0.00021,2]
[358793887,1745435432533,-800.0,0.00021,2]
[358793888,1745435432544,-800.0,0.00021,2]
[358793889,1745435432553,-800.0,0.00021,2]
[358793890,1745435432563,-800.0,0.00021,2]
[358793891,1745435432573,-800.0,0.00021,2]
[358793892,1745435432583,-800.0,0.00021,2]
[358793893,1745435432592,-500.0,0.00021,2]
[358793894,1745435432602,-800.0,0.00021,2]
[358793895,1745435432612,-500.0,0.00021,2]
[358793896,1745435432621,-800.0,0.00021,2]
[358793897,1745435432631,-500.0,0.00021,2]
[358793898,1745435432641,-1471.51774151,0.00021,2]
[358793899,1745435432650,-500.0,0.00021,2]
[358793900,1745435432660,-500.0,0.00021,2]
[358793901,1745435432671,-500.0,0.00021,2]
[358793902,1745435432681,-500.0,0.00021,2]
[358793903,1745435432690,-500.0,0.00021,2]
[358793904,1745435432700,-500.0,0.00021,2]
[358793905,1745435432709,-500.0,0.00021,2]
[358793906,1745435432719,-500.0,0.00021,2]
[358793907,1745435432728,-500.0,0.00021,2]
[358793908,1745435432738,-500.0,0.00021,2]
[358793909,1745435432747,-500.0,0.00021,2]
[358793910,1745435432757,-500.0,0.00021,2]
[358793911,1745435432767,-843.33246036,0.00021,2]
[358793912,1745435432776,-1200.0,0.00021,2]
[358793913,1745435432786,-1200.0,0.00021,2]
[358793914,1745435432796,-1200.0,0.00021,2]
[358793915,1745435432805,-1200.0,0.00021,2]
[358793916,1745435432815,-1200.0,0.00021,2]
[358793917,1745435432825,-1200.0,0.00021,2]
[358793918,1745435432835,-1200.0,0.00021,2]
[358793919,1745435432844,-1200.0,0.00021,2]
[358793920,1745435432854,-1200.0,0.00021,2]
[358793921,1745435432863,-1200.0,0.00021,2]
[358793922,1745435432872,-1200.0,0.00021,2]
[358793923,1745435432882,-1200.0,0.00021,2]
[358793924,1745435432891,-1200.0,0.00021,2]
[358793925,1745435432901,-1400.0,0.00021,2]
[358793926,1745435432910,-157.04,0.00021,2]
[358793927,1745435432922,-500.0,0.00021,2]
[358793928,1745435432931,-500.0,0.00021,2]
[358793929,1745435432942,-500.0,0.00021,2]
[358793930,1745435432951,-500.0,0.00021,2]
[358793931,1745435432961,-500.0,0.00021,2]
[358793932,1745435432970,-500.0,0.00021,2]
[358793933,1745435432980,-500.0,0.00021,2]
[358793934,1745435432992,-902.99629329,0.00021,2]
[358793935,1745435433002,-500.0,0.00021,2]
[358793936,1745435433012,-500.0,0.00021,2]
[358793937,1745435433021,-500.0,0.00021,2]
[358793938,1745435433031,-500.0,0.00021,2]
[358793939,1745435433040,-500.0,0.00021,2]
[358793940,1745435433050,-500.0,0.00021,2]
[358793941,1745435433060,-500.0,0.00021,2]
[358793942,1745435433069,-500.0,0.00021,2]
[358793943,1745435433079,-500.0,0.00021,2]
[358793944,1745435433088,-500.0,0.00021,2]
[358793945,1745435433099,-500.0,0.00021,2]
[358793946,1745435433108,-600.0,0.00021,2]
[358793947,1745435433117,-800.0,0.00021,2]
[358793948,1745435433127,-800.0,0.00021,2]
[358793949,1745435433137,-800.0,0.00021,2]
[358793950,1745435433147,-800.0,0.00021,2]
[358793951,1745435433157,-800.0,0.00021,2]
[358793952,1745435433168,-800.0,0.00021,2]
[358793953,1745435433178,-800.0,0.00021,2]
[358793954,1745435433187,-800.0,0.00021,2]
[358793955,1745435433197,-800.0,0.00021,2]
[358793956,1745435433207,-800.0,0.00021,2]
[358793957,1745435433216,-800.0,0.00021,2]
[358793958,1745435433226,-800.0,0.00021,2]
[358793959,1745435433236,-800.0,0.00021,2]
[358793960,1745435433249,-1022.91558272,0.00021,2]
[358793961,1745435433260,-3000.0,0.0002101,2]
[358793962,1745435433270,-3000.0,0.0002102,2]
[358793963,1745435433280,-3000.0,0.0002103,2]
[358793964,1745435433292,-3000.0,0.0002104,2]
[358793965,1745435433303,-3000.0,0.0002105,2]
[358793966,1745435433316,-3000.0,0.0002106,2]
[358793967,1745435433326,-3000.0,0.0002107,2]
[358793968,1745435433337,-254.67157051,0.0002107,2]
[358793969,1745435433347,-185.85435537,0.0002107,2]
[358793970,1745435433356,-151.0,0.00021073,2]
[358793971,1745435433366,-151.0,0.00021073,2]
[358793972,1745435433376,-151.0,0.00021073,2]
[358793973,1745435433386,-151.0,0.00021073,2]
[358793974,1745435433396,-151.0,0.00021073,2]
[358793975,1745435433406,-199.48579549,0.00021073,2]
[358793976,1745435433417,-518.52289076,0.00021075,2]
[358793977,1745435433428,-3000.0,0.0002108,2]
[358793978,1745435433439,-3000.0,0.0002109,2]
[358793979,1745435433448,-3000.0,0.000211,2]
[358793980,1745435433458,-500.0,0.00021106,2]
[358793981,1745435433468,-500.0,0.00021106,2]
[358793982,1745435433478,-222.6274361,0.0002111,2]
[358794011,1745435438038,-362.62697731,0.00019477,2]
[358794014,1745435438053,-3305.81447185,0.00019477,2]
[358794016,1745435438064,-12376.70451432,0.00019477,2]
[358794017,1745435438091,-6492.75259912,0.00019477,2]
[358794018,1745435438100,-2777.3725639,0.0002111,2]
[358794019,1745435438110,-500.0,0.00021119,2]
[358794020,1745435438120,-3000.0,0.0002112,2]
[358794021,1745435438129,-535.21,0.0002112,3]
[358794022,1745435438139,-178.39,0.00021129,3]
[358794023,1745435438149,-3000.0,0.0002113,2]
[358794024,1745435438158,-713.58,0.0002113,3]
[358794025,1745435438169,-356.79,0.0002113,3]
[358794027,1745435438178,-568.1204122,0.00021137,2]
[358794029,1745435438188,-500.0,0.00021137,2]
[358794031,1745435438198,-500.0,0.00021137,2]
[358794033,1745435438208,-500.36044069,0.00021137,2]
[358794034,1745435438218,-500.0,0.00021137,2]
[358794035,1745435438227,-500.0,0.00021137,2]
[358794036,1745435438241,-500.0,0.00021137,2]
[358794037,1745435438253,-300.0,0.00021137,2]
[358794038,1745435438262,-500.0,0.00021137,2]
[358794039,1745435438271,-500.0,0.00021137,2]
[358794040,1745435438281,-500.0,0.00021137,2]
[358794041,1745435438290,-500.0,0.00021137,2]
[358794042,1745435438300,-500.0,0.00021137,2]
[358794043,1745435438310,-500.0,0.00021137,2]
[358794044,1745435438320,-3000.0,0.0002114,2]
[358794045,1745435438330,-3000.0,0.0002115,2]
[358794046,1745435438339,-500.0,0.00021153,2]
[358794047,1745435438349,-500.0,0.00021153,2]
[358794048,1745435438358,-3000.0,0.0002116,2]
[358794049,1745435438368,-3000.0,0.0002117,2]
[358794050,1745435438377,-3000.0,0.0002118,2]
[358794051,1745435438387,-500.0,0.00021189,2]
[358794052,1745435438397,-450.54130739,0.00021189,2]
[358794053,1745435438406,-3000.0,0.0002119,2]
[358794054,1745435438416,-3000.0,0.000212,2]
[358794055,1745435438426,-3000.0,0.0002121,2]
[358794056,1745435438436,-3000.0,0.0002122,2]
[358794057,1745435438445,-3000.0,0.0002123,2]
[358794058,1745435438455,-3000.0,0.0002124,2]
[358794059,1745435438465,-3000.0,0.0002125,2]
[358794060,1745435438475,-3000.0,0.0002126,2]
[358794061,1745435438484,-5003.846537,0.0002127,2]
[358794062,1745435438493,-151.0,0.00021347,2]
[358794063,1745435438504,-151.0,0.00021347,2]
[358794064,1745435438513,-151.0,0.00021347,2]
[358794065,1745435438523,-12573.79847128,0.00021521,2]
[358794066,1745435438533,-160.0,0.00021521,2]
[358794067,1745435438543,-839.95942076,0.00021521,2]
[358794070,1745435438676,-420.82143104,0.00021523,2]
[358794071,1745435438728,-151.0,0.00021525,2]
[358794072,1745435438737,-151.0,0.00021535,2]
[358794073,1745435438747,-250.823,0.0002155,2]
[358794074,1745435438756,-150.078,0.0002155,2]
[358794076,1745435438766,-167.192,0.0002155,2]
[358794077,1745435438775,-250.0,0.0002155,2]
[358794078,1745435438785,-151.315,0.0002155,2]
[358794079,1745435438795,-213.046,0.0002155,2]
[358794080,1745435438804,-2246.0,0.0002155,2]
[358794081,1745435438813,-706.0,0.0002155,2]
[358794082,1745435438823,-544.0,0.0002155,2]
[358794083,1745435438832,-403.0,0.0002155,2]
[358794084,1745435438841,-403.0,0.0002155,2]
[358794085,1745435438851,-294.03380567,0.00021621,2]
[358794086,1745435438860,-151.0,0.00021621,2]
[358794087,1745435438870,-12573.79847128,0.00021659,3]
[358794088,1745435438880,-839.95942076,0.00021659,3]
[358794089,1745435438889,-160.0,0.00021659,3]
[358794090,1745435438900,-160.0,0.00021659,3]
[358794091,1745435438909,-160.0,0.00021659,3]
[358794092,1745435438920,-151.0,0.00021659,2]
[358794093,1745435438929,-151.0,0.00021659,2]
[358794094,1745435438939,-151.0,0.00021659,2]
[358794095,1745435438948,-151.0,0.00021895,2]
[358794096,1745435438959,-151.059585,0.000219,2]
[358794097,1745435438969,-151.059585,0.000219,2]
[358794098,1745435438980,-329.268756,0.000219,2]
[358794099,1745435438990,-329.268756,0.000219,2]
[358794100,1745435439001,-151.0,0.000219,2]
[358794101,1745435439010,-238.325384,0.000219,2]
[358794102,1745435439020,-238.325384,0.000219,2]
[358794103,1745435439029,-902.532572,0.000219,2]
[358794104,1745435439039,-5220.65882632,0.000219,3]
[358794105,1745435439048,-902.532572,0.000219,2]
[358794106,1745435439057,-160.0,0.00021917,2]
[358794107,1745435439067,-356.019128,0.00021918,2]
[358794108,1745435439076,-166.0,0.00021918,2]
[358794109,1745435439085,-151.0,0.00022083,2]
[358794110,1745435439094,-151.0,0.000221,10]
[358794111,1745435439103,-198.0,0.00022169,2]
[358794112,1745435439112,-420.0,0.00022246,2]
[358794113,1745435439122,-722.31259383,0.00022257,2]
[358794114,1745435439131,-356.78,0.00022499,3]
[358794115,1745435439141,-1427.16,0.000225,3]
[358794116,1745435439150,-713.58,0.000225,3]
[358794117,1745435439160,-151.0,0.000225,7]
[358794118,1745435439169,-5220.65882612,0.00022624,4]
[358794119,1745435439179,-151.0,0.00022631,2]
[358794120,1745435439188,-600.0,0.00022781,2]
[358794121,1745435439198,-151.0,0.000228,6]
[358794122,1745435439208,-151.75493893,0.000229,2]
[358794123,1745435439217,-211.37708777,0.000229,2]
[358794124,1745435439227,-151.0,0.00023,7]
[358794125,1745435439236,-151.0,0.00023,7]
[358794126,1745435439248,-151.0,0.00023,7]
[358794127,1745435439258,-160.0,0.00023,3]
[358794128,1745435439268,-1221.936969,0.00023,7]
[358794129,1745435439277,-1221.936969,0.00023,7]
[358794130,1745435439287,-160.0,0.00023,3]
[358794131,1745435439296,-160.0,0.00023,3]
[358794132,1745435439306,-151.0,0.00023,7]
[358794133,1745435439317,-167.398754,0.00023,7]
[358794134,1745435439327,-420.82143104,0.00023,3]
[358794135,1745435439336,-151.0,0.000231,7]
[358794136,1745435439347,-151.0,0.00023179,2]
[358794137,1745435439356,-161.6533751,0.00023287,2]
[358794138,1745435439365,-281.902977,0.00023348,7]
[358794139,1745435439375,-281.902977,0.00023348,7]
[358794140,1745435439385,-261.09134,0.00023348,7]
[358794141,1745435439395,-5220.65882612,0.00023348,4]
[358794142,1745435439405,-151.0,0.000234,8]
[358794143,1745435439414,-151.0,0.000237,8]
[358794144,1745435439424,-151.0,0.000237,6]
[358794145,1745435439435,-151.0,0.00023727,2]
[358794146,1745435439444,-1358.3904019,0.00023782,2]
[358794147,1745435439454,-21005.34764557,0.000239,3]
[358794148,1745435439463,-151.0,0.000239,7]
[358794149,1745435439472,-151.0,0.000239,7]
[358794150,1745435439481,-448.254368,0.000239,7]
[358794151,1745435439491,-448.254368,0.000239,7]
[358794152,1745435439500,-151.0,0.000239,7]
[358794153,1745435439509,-151.0,0.000239,7]
[358794154,1745435439519,-212.772043,0.000239,7]
[358794155,1745435439528,-222.56536409,0.00023967,2]
[358794156,1745435439538,-151.0,0.00024,10]
[358794157,1745435439547,-5220.65882612,0.00024072,5]
[358794158,1745435439557,-151.0,0.000241,6]
[358794159,1745435439567,-151.059585,0.000242,7]
[358794160,1745435439576,-151.059585,0.000242,7]
[358794161,1745435439585,-329.268756,0.000242,2]
[358794162,1745435439595,-329.268756,0.000242,2]
[358794163,1745435439604,-151.0,0.000242,7]
[358794164,1745435439614,-12573.79847128,0.000242,7]
[358794165,1745435439623,-160.0,0.000242,7]
[358794166,1745435439634,-839.95942076,0.000242,7]
[358794167,1745435439644,-238.325384,0.000242,7]
[358794168,1745435439654,-160.0,0.000242,7]
[358794169,1745435439663,-238.325384,0.000242,7]
[358794170,1745435439673,-160.0,0.000242,7]
[358794171,1745435439683,-160.0,0.000242,7]
[358794172,1745435439692,-902.532572,0.000242,2]
[358794173,1745435439702,-902.532572,0.000242,2]
[358794174,1745435439712,-420.82143104,0.000242,7]
[358794175,1745435439722,-160.0,0.000242,7]
[358794176,1745435439732,-177.2424345,0.00024204,2]
[358794177,1745435439743,-587.0,0.00024213,2]
[358794178,1745435439753,-4464.3265793,0.00024226,2]
[358794179,1745435439763,-12500.0,0.00024233,3]
[358794180,1745435439773,-160.0,0.0002424,3]
[358794181,1745435439783,-420.82143104,0.0002424,3]
[358794182,1745435439794,-160.0,0.0002424,3]
[358794183,1745435439804,-12500.0,0.00024242,3]
[358794184,1745435439813,-12500.0,0.00024251,3]
[358794185,1745435439824,-12500.0,0.0002426,3]
[358794186,1745435439833,-160.0,0.0002426,3]
[358794187,1745435439842,-839.95942076,0.0002426,3]
[358794188,1745435439852,-160.0,0.0002426,3]
[358794189,1745435439862,-151.0,0.0002426,7]
[358794190,1745435439871,-160.0,0.0002426,3]
[358794191,1745435439881,-12500.0,0.00024269,3]
[358794192,1745435439890,-160.0,0.0002427,3]
[358794193,1745435439899,-420.82143104,0.0002427,3]
[358794194,1745435439910,-500.16551554,0.00024273,2]
[358794195,1745435439921,-449.11029804,0.00024273,2]
[358794196,1745435439931,-280.30627809,0.00024273,2]
[358794197,1745435439941,-500.0,0.00024273,2]
[358794198,1745435439951,-500.0,0.00024273,2]
[358794199,1745435439961,-500.0,0.00024273,2]
[358794200,1745435439971,-500.0,0.00024273,2]
[358794201,1745435439983,-500.0,0.00024273,2]
[358794202,1745435439993,-500.0,0.00024273,2]
[358794203,1745435440002,-500.0,0.00024273,2]
[358794204,1745435440011,-500.0,0.00024273,2]
[358794205,1745435440021,-500.0,0.00024273,2]
[358794206,1745435440030,-500.0,0.00024273,2]
[358794207,1745435440041,-616.90696445,0.00024273,2]
[358794208,1745435440051,-500.0,0.00024273,2]
[358794209,1745435440061,-500.94284137,0.00024273,2]
[358794210,1745435440070,-500.0,0.00024273,2]
[358794211,1745435440080,-500.0,0.00024273,2]
[358794212,1745435440090,-500.0,0.00024273,2]
[358794213,1745435440100,-500.0,0.00024273,2]
[358794214,1745435440110,-205.18367762,0.00024273,2]
[358794215,1745435440120,-500.0,0.00024273,2]
[358794216,1745435440130,-500.0,0.00024273,2]
[358794217,1745435440140,-500.0,0.00024273,2]
[358794218,1745435440150,-500.0,0.00024273,2]
[358794219,1745435440159,-500.0,0.00024273,2]
[358794220,1745435440169,-500.0,0.00024273,2]
[358794221,1745435440179,-500.0,0.00024273,2]
[358794222,1745435440188,-500.0,0.00024273,2]
[358794223,1745435440199,-502.26641708,0.00024273,2]
[358794224,1745435440209,-502.18756215,0.00024273,2]
[358794226,1745435440220,-500.0,0.00024273,2]
[358794227,1745435440229,-553.78960758,0.00024273,2]
[358794228,1745435440240,-500.0,0.00024273,2]
[358794229,1745435440254,-500.0,0.00024273,2]
[358794231,1745435440264,-500.0,0.00024273,2]
[358794233,1745435440274,-500.0,0.00024273,2]
[358794234,1745435440284,-500.0,0.00024273,2]
[358794235,1745435440294,-500.0,0.00024273,2]
[358794236,1745435440303,-151.0,0.00024274,7]
[358794237,1745435440314,-151.0,0.00024274,7]
[358794238,1745435440324,-151.0,0.00024274,7]
[358794239,1745435440335,-1221.936969,0.00024274,7]
[358794240,1745435440345,-1221.936969,0.00024274,7]
[358794241,1745435440355,-151.0,0.00024274,7]
[358794242,1745435440365,-151.0,0.00024275,2]
[358794243,1745435440374,-158630.01043375,0.00024277,2]
[358794245,1745435440651,-1601.06569073,0.00024277,2]
[358794246,1745435440675,-1367.53143205,0.00024277,2]
[358794247,1745435441634,-2293.18101798,0.00024277,2]
[358794255,1745435443206,-493.68669383,0.00024277,2]
[358794256,1745435443218,-20763.67174434,0.00024277,2]
[358794260,1745435443531,-3097.49491422,0.00024277,2]
[358794269,1745435446294,-268.02158428,0.00021019,2]
[358794270,1745435446305,-282.80423733,0.00021918,2]
[358794271,1745435446315,-1467.55515868,0.00024277,2]
[358794272,1745435446400,-374794.02788543,0.00024277,2]
[358794273,1745435446414,-5548.77062333,0.00024277,2]
[358794426,1745436632233,-237.8892141,0.00019086,2]
[358794427,1745436632244,-218.10340693,0.00019177,4]
[358794428,1745436632254,-300.0,0.00019428,2]
[358794429,1745436632264,-900.0,0.00019428,2]
[358794430,1745436632274,-207.34050038,0.00019429,2]
[358794431,1745436632283,-3169.1789288,0.00019429,2]
[358794478,1745436638407,-2129.94034619,0.00019429,2]
[358794480,1745436638417,-472.962603,0.00019749,2]
[358794482,1745436638426,-500.0,0.00019762,2]
[358794484,1745436638436,-500.0,0.00019762,2]
[358794486,1745436638446,-169.595369,0.00019762,2]
[358794488,1745436638456,-500.0,0.00019762,2]
[358794490,1745436638466,-500.0,0.00019762,2]